Cogmind - Beta 15 *** ADVENTURER MODE // 2025.05.09 @ 19:05:46 Player: Jack Result: Destroyed by G-47 Trooper with Particle Gun Performance ------------- Evolutions (2) 1000 Regions Visited (9) 1800 Robots Destroyed (17) 85 Value Destroyed (170) 170 Prototype IDs (23) 460 Alien Tech Used (0) 0 Bonus (1060) 1060 TOTAL SCORE: 4575 Bonus ------- Follower Combat Kills 60 Entered Garrisons 200 Used RIF Installer 500 Aligned with FarCom 300 Cogmind --------- Core Integrity 0/550 Matter 281/300 Energy 99/100 System Corruption 5% Temperature Cool (9) Movement Core (50) Location -8/Materials Parts ------- > --- POWER (1) -------- (None) > --- PROPULSION (4) --- (None) > --- UTILITY (4) ------ (None) > --- WEAPON (2) ------- (None) > --- INVENTORY (5) ---- Light Assault Rifle Datajack Katana Axe Peak State ------------ > --- POWER ------------ Light Ion Engine > --- PROPULSION ------- Flight Unit Flight Unit Flight Unit Flight Unit > --- UTILITY ---------- Signal Interpreter > --- WEAPON ----------- Small Laser Shock Bomb Launcher > --- INVENTORY -------- Medium Laser Small Laser Axe Axe [Rating: 10] Favorites ----------- Power Light Ion Engine Engine Light Ion Engine Propulsion Flight Unit Flight Unit Flight Unit Utility Signal Interpreter Processor Signal Interpreter Weapon Small Laser Energy Gun Small Laser Launcher Shock Bomb Launcher Slashing Weapon Axe Build | -11 -10 -10 -9 -9 -9 -8 -8 -8 -8 ------- Run | Yrd Mat Min Mat Min Exi Min Mat Gar Mat Slots Evolved 4 | . . . 2 . . . 2 . . Power . | . . . . . . . . . . Propulsion 2 | . . . 1 . . . 1 . . Utility 2 | . . . 1 . . . 1 . . Weapon . | . . . . . . . . . . Parts Attached 15 | 2 2 3 2 . . . 2 4 . Power 1 | . . 1 . . . . . . . Engine 1 | . . 1 . . . . . . . Core . | . . . . . . . . . . Reactor . | . . . . . . . . . . Propulsion 8 | . 2 1 2 . . . 1 2 . Treads . | . . . . . . . . . . Leg . | . . . . . . . . . . Wheel . | . . . . . . . . . . Hover . | . . . . . . . . . . Flight 8 | . 2 1 2 . . . 1 2 . Utility 1 | . . 1 . . . . . . . Device . | . . . . . . . . . . Storage . | . . . . . . . . . . Processor 1 | . . 1 . . . . . . . Hackware . | . . . . . . . . . . Protection . | . . . . . . . . . . Artifact . | . . . . . . . . . . Weapon 5 | 2 . . . . . . 1 2 . Energy Gun 3 | 2 . . . . . . . 1 . Energy Cannon . | . . . . . . . . . . Ballistic Gun . | . . . . . . . . . . Ballistic Cannon . | . . . . . . . . . . Launcher 1 | . . . . . . . 1 . . Special Weapon . | . . . . . . . . . . Impact Weapon . | . . . . . . . . . . Slashing Weapon 1 | . . . . . . . . 1 . Piercing Weapon . | . . . . . . . . . . Special Melee Weapon . | . . . . . . . . . . Unidentified Prototypes . | . . . . . . . . . . Parts Lost 12 | . . 1 . . . . 6 5 . Power 1 | . . . . . . . 1 . . Propulsion 7 | . . 1 . . . . 3 3 . Utility 1 | . . . . . . . . 1 . Weapon 3 | . . . . . . . 2 1 . Highest Loss Streak 6 | . . 1 . . . . 6 2 . To Critical Strikes 1 | . . . . . . . . 1 . Average Backups 2 | . 1 2 2 3 3 3 3 3 3 Power . | . . . . . . . . . . Propulsion . | . . 1 . . . . . . . Utility . | . . . . . . . . . . Weapon 2 | . 1 1 2 3 3 3 3 2 2 Tool/Special . | . . . . . . . . . . Unused Backups 4 | . . . . . . . . . 4 Power . | . . . . . . . . . . Propulsion . | . . . . . . . . . . Utility . | . . . . . . . . . . Weapon 3 | . . . . . . . . . 3 Tool/Special 1 | . . . . . . . . . 1 Average Slot Usage (%) 46 | . 45 65 75 77 77 77 55 16 5 Engine 4 | . . 5 11 11 11 11 5 . . Flight 20 | . 16 28 31 33 33 33 26 8 . Processor 5 | . . 2 11 11 11 11 9 3 . Energy Gun 14 | . 28 28 22 22 22 22 13 1 . Slashing Weapon 1 | . . . . . . . . 3 5 Peak Build Rating 10 | 2 4 6 7 7 7 7 10 5 3 Average Rating 4 | 1 3 4 6 7 7 7 6 2 1 On Entrance 4 | . 2 4 5 7 7 7 7 3 3 Naked Turns 107 | . . . . . . . . 6 101 Heaviest Build 10 | 3 3 6 6 6 6 6 10 6 3 Greatest Support 16 | 3 8 8 12 12 12 12 16 8 3 Greatest Overweight (x) 1 | . . 1 . . . . . 1 . Average Overweight (x) . | . . . . . . . . . . Largest Inventory Capacity 5 | 5 5 5 5 5 5 5 5 5 5 Average Capacity 5 | 5 5 5 5 5 5 5 5 5 5 Most Carried 5 | 1 1 3 3 3 3 3 5 5 4 Average Carried 2 | . 1 2 2 3 3 3 3 3 3 Final Capacity 5 | 5 5 5 5 5 5 5 5 5 5 Final Carried 5 | 1 1 3 3 3 3 3 5 3 4 Class Distribution -------------------- 59% | Mutant 33% | Scavenger-Mutant 6% | Scavenger-Sprinter Dominant Class ---------------- Mutant | -10/Materials Mutant | -10/Mines Scavenger-Mutant | -9/Materials Scavenger-Mutant | -9/Mines Scavenger-Mutant | -9/Exiles Scavenger-Mutant | -8/Mines Scavenger-Sprinter | -8/Materials Mutant | -8/Garrison Mutant | -8/Materials Resources | -11 -10 -10 -9 -9 -9 -8 -8 -8 -8 ----------- Run | Yrd Mat Min Mat Min Exi Min Mat Gar Mat Matter Collected 346 | 72 58 28 . 127 . . 23 38 . Remotely . | . . . . . . . . . . Salvage Created 257 | . 94 32 . 42 . . 59 30 . Parts 24 | . 6 3 . 6 . . 7 2 . Haulers Intercepted . | . . . . . . . . . . Recyclers Shooed . | . . . . . . . . . . Parts Field Recycled . | . . . . . . . . . . Retrieved Matter . | . . . . . . . . . . Parts Self-Destructed . | . . . . . . . . . . Prevented . | . . . . . . . . . . Kills | -11 -10 -10 -9 -9 -9 -8 -8 -8 -8 ------- Run | Yrd Mat Min Mat Min Exi Min Mat Gar Mat Combat Hostiles Destroyed 17 | . 6 2 . 3 . . 4 2 . Melee 1 | . . . . . . . . 1 . Guns 12 | . 6 2 . 3 . . . 1 . AOE 3 | . . . . . . . 3 . . Classes Destroyed 1 | . 1 . . . . . . . . Swarmer 17 | . 6 2 . 3 . . 4 2 . Best Kill Streak 6 | . 6 2 . 3 . . 3 1 . Combat Bots Only 6 | . 6 2 . 3 . . 3 1 . Max Kills in Single Turn 2 | . 1 1 . 1 . . 2 1 . Gunslinging . | . . . . . . . . . . Exploded 2 | . . . . . . . 2 . . Melee 1 | . . . . . . . . 1 . Uniques/NPCs Destroyed . | . . . . . . . . . . Combat | -11 -10 -10 -9 -9 -9 -8 -8 -8 -8 -------- Run | Yrd Mat Min Mat Min Exi Min Mat Gar Mat Hostile Shots Fired 184 | . 12 6 4 15 . . 56 82 9 Missed 74 | . 5 . 1 8 . . 24 33 3 Hits 110 | . 7 6 3 7 . . 32 49 6 Melee 4 | . . . . . . . . 4 . Projectile 106 | . 7 6 3 7 . . 32 45 6 Critical Strikes 3 | . . . . . . . . 3 . Damage Taken 1063 | . 43 48 32 46 . . 299 514 81 Core 618 | . 14 12 11 30 . . 110 360 81 Absorbed by Shields . | . . . . . . . . . . Ignored by Resistances 317 | . 14 14 9 14 . . 89 156 21 Core Remaining (%) 92 | 100 . 89 . . . 89 . . . Volleys Fired 38 | . 10 4 . 3 . . 11 10 . Largest 2 | . 2 2 . 2 . . 2 1 . Hottest 90 | . 90 90 . 90 . . 90 40 . Shots Fired 62 | . 20 8 . 6 . . 19 9 . Gun 58 | . 20 8 . 6 . . 17 7 . Cannon . | . . . . . . . . . . Launcher 4 | . . . . . . . 2 2 . Special . | . . . . . . . . . . Kinetic . | . . . . . . . . . . Thermal 58 | . 20 8 . 6 . . 17 7 . Explosive . | . . . . . . . . . . Electromagnetic 4 | . . . . . . . 2 2 . Robot Hit Streak 8 | . 5 2 . 5 . . 8 4 . Robot Miss Streak 2 | . 2 1 . . . . 1 1 . Penetration Max . | . . . . . . . . . . Secondary Targets 1 | . 1 . . . . . . . . Max Gunslinging Chain 1 | . 1 . . . . . . . . Shots Hit Robots 41 | . 11 3 . 4 . . 15 8 . Core Hits 21 | . 6 2 . 3 . . 6 4 . Critical Kills . | . . . . . . . . . . Critical Parts Destroyed . | . . . . . . . . . . Critical Strikes 1 | . . . . . . . 1 . . Burn 1 | . . . . . . . 1 . . Melee Attacks 3 | . . . . . . . . 3 . Impact . | . . . . . . . . . . Slashing 3 | . . . . . . . . 3 . Piercing . | . . . . . . . . . . Sneak Attacks . | . . . . . . . . . . Combat Hostiles . | . . . . . . . . . . Follow-up Attacks . | . . . . . . . . . . Damage Inflicted 714 | . 135 35 . 49 . . 327 152 16 Guns 459 | . 135 35 . 49 . . 175 65 . Cannons . | . . . . . . . . . . Explosions 174 | . . . . . . . 152 22 . Melee 65 | . . . . . . . . 65 . Ramming 16 | . . . . . . . . . 16 Kinetic . | . . . . . . . . . . Thermal 509 | . 135 35 . 49 . . 225 65 . Explosive . | . . . . . . . . . . Electromagnetic 124 | . . . . . . . 102 22 . Impact . | . . . . . . . . . . Slashing 65 | . . . . . . . . 65 . Piercing . | . . . . . . . . . . Highest Corruption 5 | . . . . . . . . 5 5 Average Corruption 4 | . . . . . . . . 4 5 Corruption Purged . | . . . . . . . . . . Corruption Blocked . | . . . . . . . . . . Effects 9 | . . . . . . . . 5 4 Matter Fused 2 | . . . . . . . . 1 1 Heat Flow Errors 1 | . . . . . . . . . 1 Energy Discharges 3 | . . . . . . . . 1 2 Parts Rejected 1 | . . . . . . . . 1 . Data Loss (major) 1 | . . . . . . . . 1 . Weapon Failures 1 | . . . . . . . . 1 . Overload Shots . | . . . . . . . . . . Overflow Damage 4 | . . . . . . . 4 . . Projectiles . | . . . . . . . . . . Explosions 4 | . . . . . . . 4 . . Melee . | . . . . . . . . . . Knockbacks . | . . . . . . . . . . Impact . | . . . . . . . . . . Kinetic . | . . . . . . . . . . Secondary . | . . . . . . . . . . Self-Inflicted Damage 24 | . . . . . . . . 16 8 Shots 1 | . . . . . . . . 1 . Rammed 2 | . . . . . . . . . 2 Targets Rammed 2 | . . . . . . . . . 2 Kicked . | . . . . . . . . . . Crushed . | . . . . . . . . . . Highest Temperature 113 | . 70 65 . 60 . . 95 2 113 Average Temperature 33 | . 32 30 . 28 . . 36 2 66 Received Heat Transfer 378 | . . 21 18 . . . 153 141 45 Siege Activations . | . . . . . . . . . . Martial Activations . | . . . . . . . . . . Shielding Activations . | . . . . . . . . . . Robots Disrupted . | . . . . . . . . . . Combat Hostiles . | . . . . . . . . . . Robots Corrupted . | . . . . . . . . . . Combat Hostiles . | . . . . . . . . . . Parts Fried 1 | . . . . . . . 1 . . Impact Corruptions . | . . . . . . . . . . Robots Melted 1 | . . . . . . . 1 . . Combat Hostiles 1 | . . . . . . . 1 . . Parts Melted 1 | . . . . . . . 1 . . Heat Transferred 1351 | . 359 99 . 136 . . 607 150 . Parts Sabotaged . | . . . . . . . . . . Parts Stolen . | . . . . . . . . . . Parts Stripped . | . . . . . . . . . . Power Chain Reactions 2 | . . . . . . . 2 . . Alert | -11 -10 -10 -9 -9 -9 -8 -8 -8 -8 ------- Run | Yrd Mat Min Mat Min Exi Min Mat Gar Mat Maximum Alert Level 2 | . . . . . . . . 2 . Low Security (%) 92 | 100 100 100 100 100 . 100 100 62 100 Level 1 6 | . . . . . . . . 30 . Level 2 1 | . . . . . . . . 6 . Level 3 . | . . . . . . . . . . Level 4 . | . . . . . . . . . . Level 5 . | . . . . . . . . . . High Security . | . . . . . . . . . . Max Security . | . . . . . . . . . . Peak Influence 418 | . 175 77 12 75 . . 119 418 179 Initial 179 | . . 37 12 . . . . 53 179 Average 94 | . 104 48 6 40 . . 65 190 143 Influence Increases 1195 | . 185 50 6 190 . . 264 425 75 Destroy 0b10 Robot/C 420 | . 120 40 . 140 . . 80 40 . Destroy Leader 70 | . 20 10 . 20 . . 10 10 . Successful Hack 12 | . . . 6 . . . 6 . . Anti-Garrison Action 100 | . . . . . . . . 100 . Destroy Structure 8 | . . . . . . . 3 5 . Partial Spotted 105 | . . . . . . . 60 30 15 Lose Combat Pursuer 480 | . 45 . . 30 . . 105 240 60 Influence Decreases 1041 | . 70 128 43 180 10 . 170 91 349 Entered New Map 403 | . . 78 25 . 10 . . 41 249 Time Decay 458 | . 70 40 18 120 . . 110 . 100 Lost Part 120 | . . 10 . . . . 60 50 . Lost Ally 60 | . . . . 60 . . . . . Squads Dispatched 3 | . . . 1 . . . 1 . 1 Investigation 2 | . . . . . . . 1 . 1 Extermination . | . . . . . . . . . . Reinforcement 1 | . . . 1 . . . . . . Assault . | . . . . . . . . . . Garrison . | . . . . . . . . . . Intercept . | . . . . . . . . . . Searches Triggered . | . . . . . . . . . . Construction Impeded . | . . . . . . . . . . Haulers Reinforced . | . . . . . . . . . . Active Scanning Responses . | . . . . . . . . . . Cargo Convoy Interrupts . | . . . . . . . . . . Stealth | -11 -10 -10 -9 -9 -9 -8 -8 -8 -8 --------- Run | Yrd Mat Min Mat Min Exi Min Mat Gar Mat Distress Signals 4 | . 1 . . . . . 2 . 1 Communications Jammed . | . . . . . . . . . . Distress Signals . | . . . . . . . . . . Times Spotted 86 | . 15 5 3 10 . . 21 22 10 Peak Tracking Total 12 | . 6 3 3 4 . . 10 12 6 Tactical Retreats 17 | . 1 . . 2 . . 4 7 3 Traps | -11 -10 -10 -9 -9 -9 -8 -8 -8 -8 ------- Run | Yrd Mat Min Mat Min Exi Min Mat Gar Mat Traps Triggered 4 | . . . . . . . 1 1 2 Indirectly 1 | . . . . . . . 1 . . Trap Hack Attempts . | . . . . . . . . . . Triggered . | . . . . . . . . . . Disarmed . | . . . . . . . . . . Reprogrammed . | . . . . . . . . . . Reused . | . . . . . . . . . . Traps Extracted . | . . . . . . . . . . Installed . | . . . . . . . . . . Triggered . | . . . . . . . . . . Machines | -11 -10 -10 -9 -9 -9 -8 -8 -8 -8 ---------- Run | Yrd Mat Min Mat Min Exi Min Mat Gar Mat Machines Disabled . | . . . . . . . . . . Max in Single Turn . | . . . . . . . . . . Machines Repaired . | . . . . . . . . . . Machines Dismantled . | . . . . . . . . . . Machines Sabotaged . | . . . . . . . . . . Overloaded Fab Kills . | . . . . . . . . . . Hacking | -11 -10 -10 -9 -9 -9 -8 -8 -8 -8 --------- Run | Yrd Mat Min Mat Min Exi Min Mat Gar Mat Machines Accessed 11 | . . 1 2 . 1 . 2 3 2 Terminals 8 | . . . 2 . . . 1 3 2 Fabricators . | . . . . . . . . . . Repair Stations . | . . . . . . . . . . Recycling Units . | . . . . . . . . . . Scanalyzers . | . . . . . . . . . . Garrison Access 1 | . . . . . . . 1 . . Total Hacks 18 | . . 1 3 . 1 . 3 6 4 Successful 7 | . . 1 2 . 1 . 2 . 1 Failed 11 | . . . 1 . . . 1 6 3 Catastrophic 4 | . . . . . . . . 2 2 Database Lockouts . | . . . . . . . . . . Manual 16 | . . . 3 . 1 . 2 6 4 Terminals 15 | . . . 3 . . . 2 6 4 Fabricators . | . . . . . . . . . . Repair Stations . | . . . . . . . . . . Recycling Units . | . . . . . . . . . . Scanalyzers . | . . . . . . . . . . Garrison Access 1 | . . . . . . . 1 . . Terminal Hacks 4 | . . 1 1 . 1 . . . 1 Open Door 1 | . . 1 . . . . . . . Branch Access Points 1 | . . . 1 . . . . . . Zone Layout 1 | . . . . . . . . . 1 Proto ID Catalog 1 | . . . . . 1 . . . . Fabricator Hacks . | . . . . . . . . . . Repair Station Hacks . | . . . . . . . . . . Recycling Unit Hacks . | . . . . . . . . . . Scanalyzer . | . . . . . . . . . . Garrison Access Hacks 1 | . . . . . . . 1 . . Unlock Access 1 | . . . . . . . 1 . . Unauthorized Hacks 2 | . . . 1 . . . 1 . . Terminals 2 | . . . 1 . . . 1 . . Botnet 1 | . . . 1 . . . . . . Disrupt 1 | . . . . . . . 1 . . Fabricators . | . . . . . . . . . . Repair Stations . | . . . . . . . . . . Recycling Units . | . . . . . . . . . . Scanalyzers . | . . . . . . . . . . Garrison Access . | . . . . . . . . . . Data Cores Recovered . | . . . . . . . . . . Used . | . . . . . . . . . . Hacking Detections 7 | . . . 1 . . . 2 3 1 Full Trace Events 3 | . . . . . . . . 2 1 Feedback Events . | . . . . . . . . . . Feedback Blocked . | . . . . . . . . . . Robot Schematics Acquired . | . . . . . . . . . . Robots Built . | . . . . . . . . . . Authchips . | . . . . . . . . . . Time . | . . . . . . . . . . Total Robot Build Rating . | . . . . . . . . . . Part Schematics Acquired . | . . . . . . . . . . Parts Built . | . . . . . . . . . . Authchips . | . . . . . . . . . . Time . | . . . . . . . . . . Total Part Build Rating . | . . . . . . . . . . Parts Repaired . | . . . . . . . . . . Time . | . . . . . . . . . . Parts Recycled . | . . . . . . . . . . Recycled Matter . | . . . . . . . . . . Retrieved Matter . | . . . . . . . . . . Retrieved Components . | . . . . . . . . . . Parts Scanalyzed . | . . . . . . . . . . Part Schematics Acquired . | . . . . . . . . . . Parts Damaged . | . . . . . . . . . . Bothacking | -11 -10 -10 -9 -9 -9 -8 -8 -8 -8 ------------ Run | Yrd Mat Min Mat Min Exi Min Mat Gar Mat Used RIF Installer 1 | . . . . . . . . 1 . Robots Hacked . | . . . . . . . . . . Non-combat . | . . . . . . . . . . Combat . | . . . . . . . . . . Robot Hacks Applied . | . . . . . . . . . . Relay Couplers Released . | . . . . . . . . . . Fabnet Peak Effective % . | . . . . . . . . . . Robots Rewired . | . . . . . . . . . . Allies Hacked . | . . . . . . . . . . Hacks Repelled . | . . . . . . . . . . Allies | -11 -10 -10 -9 -9 -9 -8 -8 -8 -8 -------- Run | Yrd Mat Min Mat Min Exi Min Mat Gar Mat Total Allies 3 | . . . . 3 . . . . . Largest Group 3 | . . . . 3 . . . . . Highest-Rated Group 40 | . . . . 40 . . . . . Highest-Rated Ally 16 | . . . . 16 . . . . . Total Orders . | . . . . . . . . . . Ally Attacks 12 | . . . . 12 . . . . . Total Damage 140 | . . . . 140 . . . . . Kills 4 | . . . . 4 . . . . . Allies Corrupted . | . . . . . . . . . . Allies Melted . | . . . . . . . . . . Intel | -11 -10 -10 -9 -9 -9 -8 -8 -8 -8 ------- Run | Yrd Mat Min Mat Min Exi Min Mat Gar Mat Active Infowar (turns) . | . . . . . . . . . . Robot Analysis Total . | . . . . . . . . . . Derelict Logs Recovered . | . . . . . . . . . . Drone Launches . | . . . . . . . . . . Drone Recoveries . | . . . . . . . . . . Exploration | -11 -10 -10 -9 -9 -9 -8 -8 -8 -8 ------------- Run | Yrd Mat Min Mat Min Exi Min Mat Gar Mat Turns Passed 1510 | 22 187 98 48 251 72 104 223 288 217 Spaces Moved 3172 | 36 370 180 123 530 212 306 511 508 396 Core 654 | 36 92 . . . . . . 130 396 Treads . | . . . . . . . . . . Legs . | . . . . . . . . . . Wheels . | . . . . . . . . . . Hover . | . . . . . . . . . . Flight 2518 | . 278 180 123 530 212 306 511 378 . Fastest Speed 31 | 50 37 37 34 34 34 34 31 37 50 Average Speed 38 | 50 40 37 34 34 34 34 33 42 50 Slowest Speed 120 | 50 50 120 34 34 34 34 40 120 50 Overloaded Moves . | . . . . . . . . . . Propulsion Burnouts . | . . . . . . . . . . Robots Hopped 42 | . 7 3 1 6 . 2 16 7 . Potential Cave-ins . | . . . . . . . . . . Cave-ins Triggered . | . . . . . . . . . . Exploration Rate (%) 52 | 3 79 41 16 93 61 73 66 70 27 Regions Visited 9 Branch Regions 4 Pre-discovered Areas . | . . . . . . . . . . Known Exits Taken 6 | . . 1 1 1 1 1 1 . . Unknown Exits Taken 2 | 1 1 . . . . . . . . Scrap Searched 2 | . . 1 . 1 . . . . . Spaces Dug . | . . . . . . . . . . Terrain Destroyed 3 | . . . . . . . 3 . . Melee . | . . . . . . . . . . Projectile . | . . . . . . . . . . AOE 3 | . . . . . . . 3 . . Terrain Rammed . | . . . . . . . . . . Walls Destroyed . | . . . . . . . . . . Machines Disabled . | . . . . . . . . . . Actions | -11 -10 -10 -9 -9 -9 -8 -8 -8 -8 --------- Run | Yrd Mat Min Mat Min Exi Min Mat Gar Mat Total 3341 | 38 379 198 127 588 211 303 524 558 415 Wait 127 | . 5 12 2 62 . . 13 18 15 Move 3085 | 35 356 173 120 517 211 301 481 495 396 Hop 36 | . 6 3 1 6 . 2 14 4 . Pick Up 9 | 1 . 2 2 . . . 2 1 1 Fast Attach 10 | 2 2 2 . . . . 1 3 . Attach 6 | . . . 2 . . . . 4 . Detach 1 | . . . . . . . . 1 . Swap 3 | . . 1 . . . . 2 . . Drop 3 | . . 1 . . . . . 1 1 Fire 38 | . 10 4 . 3 . . 11 10 . Melee 3 | . . . . . . . . 3 . Ram 2 | . . . . . . . . . 2 Kick . | . . . . . . . . . . Crush . | . . . . . . . . . . Escape Stasis 18 | . . . . . . . . 18 . Rewire . | . . . . . . . . . . Trap . | . . . . . . . . . . Miscellaneous . | . . . . . . . . . . Route ------- -11/Scrapyard -10/Materials (discovered 4 exits: *Mat x3 / *Min) -10/Mines (discovered 2 exits: *Mat / [*Sub]) -9/Materials (discovered 2 exits: *Min x2) -9/Mines (discovered 3 exits: *Mat x2 / *Exi) -9/Exiles -8/Mines -8/Materials (discovered 3 exits: [*Fac x2] / Gar) -8/Garrison (discovered 3 exits: *Mat x3) -8/Materials History --------- Turn | Location | Event 3 | -11/Scrapyard | Discovered new exit (range 15) 23 | -11/Scrapyard | Entered Materials 89 | -10/Materials | Discovered new exit (range 14) 142 | -10/Materials | Discovered new exit (range 8) 175 | -10/Materials | Discovered new exit (range 8) 205 | -10/Materials | Discovered new exit (range 16) 210 | -10/Materials | Entered Mines 222 | -10/Mines | Met a Derelict bent on vengeance 239 | -10/Mines | Found the Drone Emporium 299 | -10/Mines | Discovered new exit (range 10) 301 | -10/Mines | Build established: Mutant 301 | -10/Mines | Discovered new exit (range 6) 307 | -10/Mines | Identified exit to Materials 308 | -10/Mines | Entered Materials 308 | -9/Materials | Evolved 2 slots: Propulsion x1, Utility x1 338 | -9/Materials | Identified exit to Mines 356 | -9/Materials | Entered Mines 392 | -9/Mines | Received a Rocket Launcher from a helpful Derelict 431 | -9/Mines | Assisted by bots powering up and referring to "LRC-V3" 551 | -9/Mines | Discovered new exit (range 14) 555 | -9/Mines | Identified exit to Materials 564 | -9/Mines | Found a hidden stash of uninstalled traps 577 | -9/Mines | Discovered exit to Materials (range 9) 606 | -9/Mines | Deemed a non-threat by the Exiles lab entrance 606 | -9/Mines | Discovered new exit (range 5) 607 | -9/Mines | Identified exit to Exiles 607 | -9/Mines | Entered Exiles 615 | -9/Exiles | Build established: Scavenger-Mutant 615 | -9/Exiles | Met 8R-AWN 621 | -9/Exiles | Met EX-HEX 631 | -9/Exiles | Met EX-BIN 636 | -9/Exiles | Aligned with FarCom system 636 | -9/Exiles | Given EX-Vault access code 646 | -9/Exiles | Opened EX-Vault 654 | -9/Exiles | Warned to stay clear of 0b10 Research branches 664 | -9/Exiles | Met EX-DEC 676 | -9/Exiles | Discovered new exit (range 12) 679 | -9/Exiles | Identified exit to Mines 679 | -9/Exiles | Entered Mines 779 | -8/Mines | Discovered exit to Materials (range 12) 783 | -8/Mines | Entered Materials 783 | -8/Materials | Evolved 2 slots: Propulsion x1, Utility x1 838 | -8/Materials | Discovered new exit (range 16) 929 | -8/Materials | Discovered new exit (range 16) 992 | -8/Materials | Lost 6 parts (1p3n2w) 1006 | -8/Materials | Identified exit to Garrison 1006 | -8/Materials | Entered Garrison 1046 | -8/Garrison | Triggered checkpoint 1126 | -8/Garrison | Spotted B-75 Beast 1138 | -8/Garrison | Discovered new exit (range 10) 1150 | -8/Garrison | Core integrity fell below 50% 1154 | -8/Garrison | Triggered checkpoint 1172 | -8/Garrison | Core integrity fell below 20% 1221 | -8/Garrison | Discovered new exit (range 14) 1224 | -8/Garrison | Build established: Mutant 1270 | -8/Garrison | Triggered checkpoint 1282 | -8/Garrison | Discovered new exit (range 10) 1289 | -8/Garrison | Installed Relay Interface Framework 1294 | -8/Garrison | Entered Materials 1511 | -8/Materials | Destroyed by G-47 Trooper with Particle Gun Last Messages --------------- K-01 Serf collects debris. Dropped Axe. Acquired Katana. K-01 Serf collects debris. Triggered Blade Trap. Massive razor-sharp blades shoot up from within the floor. Triggered Blade Trap. Massive razor-sharp blades shoot up from within the floor. Connecting with Terminal... Current location identified: Materials ALERT: Suspicious activity at Terminal M011. Dispatching Investigation squad. System corrupted: Matter fused (-5). System corrupted: Energy discharge (-25). Connecting with Terminal... >>Layout(Zone) Retrieving Zone 4C layout... Downloaded map data. Slammed into R-06 Scavenger. R-06 Scavenger distress signal alerts nearby ally. Slammed into A-02 Transporter. Map ----- +----------------------------------------------------+ | ?????????????????????????????????????????????????? | | ?????????????????????????????????????????????????? | | ?????????????????????????????????????????????????? | | ?????????????????????????????????????????????????? | | ?????????????????????????????????????????????????? | | ?????????????????????????????????????????????????? | | ?????????????????????????????????????????????????? | | ?????????????????????????????????????????????????? | | ?????????????????????????????????????????????????? | | ?????????????????????????????????????????????????? | | ?????????????????????????????????????????????????? | | ?????????????????g?????????#??# ## #?# #????? | | ???????????????????????????#??# ## #?# #????? | | ????????????????????g??????#### ## ########?? | | ???????????????????????????+ ## # #?? | | ???????????????????????????#### ## # ! = #?? | | ???????????????????????????#??# ## # ! #?? | | ???????????????????????????#??# ####+#### * #?? | | ???????????????????????????#??# ## ## ! ! #?? | | ???????????????????????????#??# ## ## #?? | | ???????????????????????????#??# ##+##+###?? | | ??????????????????????????????#### ## ## #???? | | ?????????????????????????????????# ## ## #???? | | ????????????????????????#######??###Y####+## #???? | | ????????????????????????# #????#h# # #???? | | ????????????????????????#@ ###### # "# #???? | | ????????????????????????+ ua + T# #???? | | ????????????????????????# ###### # "# #??## | | ????????????????g???????# gg #????# # # #??# | | ????????????????????????### ###????# # # #??# | | ??????????????????????????# #??????# # # #??# | | ??????????????????????????#+#???#### ####### #??# | | ??????????????????????????? #???# #?????# #??# | | ??????????????????????????? #???# #?????# #??# | | ??????????????????????????? #???# #?????# #??## | | ??????????????????????????? #???# #?????# ##### | | ??????????????????????????? #???# g #?????# | | ??????????????????????????? #???# ####### | | ??????????????????????????? #???# | | ??????????????????????????? #???################## | | ???????????????????????????##########????????????? | | ??????????????????h????s??? #????????????? | | ?????????????????????????????????????############# | | ?????????????????????????????????????# # | | ?????????????????????????????????????# # | | ?????????????????????????????????????#""" + * | | ?????????????????????????????????????#""" # | | ?????????????????????????????????????#""" # | | ?????????????????????????????????????# ! ### ## | | ?????????????????????????????????????########?# #? | +----------------------------------------------------+ Best States ------------- Heat Dissipation 31 Energy Generation 10 Energy Capacity 125 Matter Stores 300 Matter Capacity 300 Sight Range 16 Terrain Scan Density 10 Resistance: KI 20 Resistance: TH 20 Resistance: EX 20 Resistance: EM 20 Resistance: I 20 Resistance: S 20 Resistance: P 20 Evasion (%) 63 Offensive Hacking 10 Item Schematics ----------------- None Robot Schematics ------------------ None Fabricated ------------ Nothing Repaired ---------- Nothing Alien Tech Used ----------------- None Achievements -------------- None Challenges ------------ None Game ------ Seed CentriumArmorMediator Manual? 0 Play Time 00:19:19 Cumulative 105.1 hours Start 2025.05.09 @ 18:48:01 End 2025.05.09 @ 19:05:46 Sessions 1 Manual Loads 0 Difficulty Adventurer Special Mode None Game No. 122 Rogue 18 Adventurer 97 Explorer 7 Win Type - Total 20 Types 4/0/9/0/2/0/4/1/0/0 Lore% 38 Gallery% 37 Achievement% 61 Wizard Run 0 Options --------- Layout 0 ASCII 0 Keyboard 0 Movement Numpad Keybinds 0 Fullscreen 2 Font 12/Smallcaps Map View 83x54 Zoom Use 0% Tactical HUD 0 Map Filters NONE Filters NONE Steam X RUN: 9ac947be-a83b-4a8a-9a3b-0e5cdf7a67f0